[Event "Polish Youth G16 Championship 2023"]
[Site "Jastrzebia Gora"]
[Date "2023.03.18"]
[Round "8.21"]
[White "Racis, Dominika"]
[Black "Ekner, Maria"]
[Result "1-0"]
[ECO "D30"]
[WhiteElo "1201"]
[BlackElo "1337"]
[Annotator "NA RC COMBH"]
[PlyCount "77"]
[EventDate "2023.03.11"]
[EventType "swiss"]
[EventCountry "POL"]
[SourceTitle "playchess.com"]
[Source "ChessBase"]
[SourceQuality "1"]
[TimeControl "40/5400+30:1800+30"]

1. d4 {[%emt 0:00:02]} d5 {[%emt 0:00:05]} 2. c4 {[%emt 0:00:07]} e6 {[%emt 0:00:13]} 3. cxd5 {[%emt 0:00:08]} exd5 {[%emt 0:00:15]} 4. Nf3 {[%emt 0:00:12]} Nf6 {[%emt 0:00:32]} 5. Bg5 {[%emt 0:00:08]} Nc6 {[%emt 0:01:19]} 6. a3 {[%emt 0:01:25]} Be7 {[%emt 0:01:06]} 7. e3 {[%emt 0:00:29]} Bg4 {[%emt 0:01:18]} 8. Bd3 {[%emt 0:00:57]} O-O {[%emt 0:02:20]} 9. Bxf6 {[%emt 0:02:40]} Bxf6 {[%emt 0:00:31]} 10. Nc3 {[%emt 0:01:30]} Re8 {[%emt 0:02:00]} 11. O-O {[%emt 0:01:28]} Nb8 {[%emt 0:04:05]} 12. Qb3 {[%emt 0:03:39]} Bxf3 {[%emt 0:02:21]} 13. gxf3 {[%emt 0:00:55]} b6 {[%emt 0:06:07]} 14. Qxd5 {[%emt 0:00:25]} Nd7 {[%emt 0:00:32]} 15. Qf5 {[%emt 0:03:32]} g6 {[%emt 0:00:45]} 16. Qg4 {[%emt 0:01:13]} Bg7 {[%emt 0:02:29]} 17. Rac1 {[%emt 0:05:25]} c5 {[%emt 0:01:35]} 18. dxc5 {[%emt 0:01:48]} Ne5 {[%emt 0:00:27]} 19. Qg2 {[%emt 0:10:51]} Qxd3 {[%emt 0:01:04]} 20. cxb6 {[%emt 0:02:37]} axb6 {[%emt 0:00:14]} 21. Rfd1 {[%emt 0:02:32]} Qf5 {[%emt 0:01:13]} 22. f4 {[%emt 0:01:23]} Nc4 {[%emt 0:01:19]} 23. Rd5 {[%emt 0:08:48]} Qe6 {[%emt 0:02:38]} 24. Rb5 {[%emt 0:09:49]} Rab8 {[%emt 0:03:27]} 25. f5 {[%emt 0:08:49]} Qd7 {[%emt 0:02:29]} 26. Rd1 {[%emt 0:06:42]} Qb7 {[%emt 0:02:19]} 27. Nd5 {[%emt 0:07:40]} Bxb2 {[%emt 0:04:59]} 28. Rxb2 {[%emt 0:08:43]} Nxb2 {[%emt 0:00:32]} 29. Nf6+ {[%emt 0:00:05]} Kf8 {[%emt 0:01:07]} 30. Nxh7+ {[%emt 0:02:13]} Kg7 {[%emt 0:00:24]} 31. Qh3 {[%emt 0:00:16]} Rh8 {[%emt 0:01:23]} 32. fxg6 {[%emt 0:04:48]} Nxd1 {[%emt 0:00:58]} 33. Qf5 {[%emt 0:01:06]} fxg6 {[%emt 0:01:02]} 34. Qf6+ {[%emt 0:00:08]} Kxh7 {[%emt 0:00:17]} 35. Qh4+ {[%emt 0:00:03]} Kg8 {[%emt 0:00:30]} 36. Qf4 {[%emt 0:00:55]} Rf8 {[%emt 0:00:54]} 37. Qd6 {[%emt 0:00:24]} Qf7 {[%emt 0:00:23]} 38. f3 {[%emt 0:00:15]} Qxf3 {[%emt 0:00:23]} 39. Qxg6# 1-0

[Event "Polish Youth G16 Championship 2023"]
[Site "Jastrzebia Gora"]
[Date "2023.03.18"]
[Round "8.22"]
[White "Butkiewicz, Hanna"]
[Black "Lach, Alicja"]
[Result "1-0"]
[ECO "B34"]
[WhiteElo "1120"]
[BlackElo "1231"]
[Annotator "NA RC COMBH"]
[PlyCount "63"]
[EventDate "2023.03.11"]
[EventType "swiss"]
[EventCountry "POL"]
[SourceTitle "playchess.com"]
[Source "ChessBase"]
[SourceQuality "1"]
[TimeControl "40/5400+30:1800+30"]

1. e4 {[%emt 0:00:02]} c5 {[%emt 0:00:02]} 2. Nf3 {[%emt 0:00:05]} Nc6 {[%emt 0:00:03]} 3. d4 {[%emt 0:00:26]} cxd4 {[%emt 0:00:03]} 4. Nxd4 {[%emt 0:00:04]} g6 {[%emt 0:00:03]} 5. Nc3 {[%emt 0:00:12]} Bg7 {[%emt 0:00:03]} 6. Nxc6 {[%emt 0:00:06]} bxc6 {[%emt 0:00:27]} 7. Bd3 {[%emt 0:00:57]} d6 {[%emt 0:08:57]} 8. O-O {[%emt 0:00:17]} Nf6 {[%emt 0:00:22]} 9. Kh1 {[%emt 0:03:01]} O-O {[%emt 0:00:10]} 10. h3 {[%emt 0:03:35]} Be6 {[%emt 0:01:56]} 11. f4 {[%emt 0:05:01]} d5 {[%emt 0:10:29]} 12. Qf3 {[%emt 0:09:52]} d4 {[%emt 0:11:52]} 13. Ne2 {[%emt 0:01:58]} c5 {[%emt 0:01:57]} 14. b3 {[%emt 0:01:26]} Rc8 {[%emt 0:02:05]} 15. c3 {[%emt 0:03:27]} dxc3 {[%emt 0:02:27]} 16. Nxc3 {[%emt 0:00:52]} c4 {[%emt 0:06:27]} 17. bxc4 {[%emt 0:01:50]} Bxc4 {[%emt 0:02:49]} 18. Bxc4 {[%emt 0:00:20]} Rxc4 {[%emt 0:00:05]} 19. e5 {[%emt 0:01:37]} Nd7 {[%emt 0:01:11]} 20. Rd1 {[%emt 0:01:49]} Qc8 {[%emt 0:20:13]} 21. Qd3 {[%emt 0:02:56]} Nb6 {[%emt 0:02:03]} 22. Ne2 {[%emt 0:06:06]} Qc7 {[%emt 0:03:16]} 23. Ba3 {[%emt 0:02:32]} Qb7 {[%emt 0:02:32]} 24. Rab1 {[%emt 0:01:34]} Rfc8 {[%emt 0:01:11]} 25. Rdc1 {[%emt 0:04:36]} Rxc1+ {[%emt 0:02:43]} 26. Bxc1 {[%emt 0:01:08]} e6 {[%emt 0:01:39]} 27. Be3 {[%emt 0:02:18]} Qc7 {[%emt 0:04:34]} 28. Qa6 {[%emt 0:06:39]} Qc2 {[%emt 0:03:35]} 29. Rc1 {[%emt 0:00:38]} Qe4 {[%emt 0:03:20]} 30. Rxc8+ {[%emt 0:00:37]} Nxc8 {[%emt 0:00:52]} 31. Qxc8+ {[%emt 0:00:06]} Bf8 {[%emt 0:00:03]} 32. Bc5 {[%emt 0:00:23]} 1-0

[Event "Polish Youth G16 Championship 2023"]
[Site "Jastrzebia Gora"]
[Date "2023.03.19"]
[Round "9.1"]
[White "Szczotka, Klara"]
[Black "Tokarz, Izabela"]
[Result "1/2-1/2"]
[ECO "D31"]
[WhiteElo "1739"]
[BlackElo "1725"]
[Annotator "NA RC COMBH"]
[PlyCount "87"]
[EventDate "2023.03.11"]
[EventType "swiss"]
[EventCountry "POL"]
[SourceTitle "playchess.com"]
[Source "ChessBase"]
[SourceQuality "1"]
[TimeControl "40/5400+30:1800+30"]

1. d4 {[%emt 0:00:05]} d5 {[%emt 0:01:51]} 2. c4 {[%emt 0:00:06]} e6 {[%emt 0:00:04]} 3. Nc3 {[%emt 0:00:05]} a6 {[%emt 0:00:02]} 4. cxd5 {[%emt 0:00:03]} exd5 {[%emt 0:00:05]} 5. Bf4 {[%emt 0:00:05]} Nf6 {[%emt 0:00:48]} 6. e3 {[%emt 0:00:04]} Bd6 {[%emt 0:01:00]} 7. Bxd6 {[%emt 0:00:05]} Qxd6 {[%emt 0:00:06]} 8. Bd3 {[%emt 0:00:08]} O-O {[%emt 0:01:05]} 9. h3 {[%emt 0:01:08]} Be6 {[%emt 0:07:44]} 10. Nf3 h6 11. O-O {[%emt 0:02:20]} Nbd7 {[%emt 0:00:36]} 12. Rc1 {[%emt 0:01:57]} Rfc8 {[%emt 0:08:16]} 13. Re1 {[%emt 0:10:52]} Rab8 {[%emt 0:04:17]} 14. Na4 {[%emt 0:07:04]} Ne4 {[%emt 0:09:50]} 15. Qc2 {[%emt 0:08:49]} c5 {[%emt 0:23:01]} 16. Bxe4 {[%emt 0:07:31]} dxe4 {[%emt 0:00:06]} 17. Qxe4 {[%emt 0:01:21]} Bxa2 {[%emt 0:01:24]} 18. Nc3 {[%emt 0:09:29]} Bb3 {[%emt 0:02:04]} 19. Nd2 {[%emt 0:03:43]} cxd4 {[%emt 0:03:50]} 20. Qxd4 {[%emt 0:08:09]} Qxd4 {[%emt 0:00:10]} 21. exd4 Be6 22. d5 {[%emt 0:00:42]} Bf5 {[%emt 0:01:00]} 23. g4 {[%emt 0:00:08]} Bg6 {[%emt 0:00:51]} 24. Re7 {[%emt 0:09:34]} Nf6 {[%emt 0:01:11]} 25. Rd1 {[%emt 0:09:25]} Rd8 {[%emt 0:02:03]} 26. Nf3 {[%emt 0:03:16]} Rd6 {[%emt 0:01:42]} 27. Ne5 {[%emt 0:02:52]} b5 {[%emt 0:05:41]} 28. Nxg6 {[%emt 0:05:27]} fxg6 {[%emt 0:00:03]} 29. Re6 {[%emt 0:01:09]} Rbd8 {[%emt 0:03:54]} 30. Rxd6 {[%emt 0:00:28]} Rxd6 {[%emt 0:00:02]} 31. b4 {[%emt 0:00:08]} g5 {[%emt 0:01:40]} 32. Kf1 {[%emt 0:00:15]} Kf7 {[%emt 0:01:45]} 33. Ke2 {[%emt 0:00:16]} Ke7 {[%emt 0:00:31]} 34. Ke3 {[%emt 0:00:57]} Rd8 {[%emt 0:03:51]} 35. Ra1 {[%emt 0:02:31]} Nxd5+ {[%emt 0:06:31]} 36. Nxd5+ {[%emt 0:00:07]} Rxd5 {[%emt 0:00:02]} 37. Rxa6 {[%emt 0:00:05]} Rd1 {[%emt 0:03:39]} 38. Rb6 {[%emt 0:01:40]} Rh1 {[%emt 0:00:13]} 39. Rxb5 {[%emt 0:00:52]} Rxh3+ {[%emt 0:00:04]} 40. Ke4 {[%emt 0:00:00]} Rb3 {[%emt 0:00:00]} 41. Rb7+ {[%emt 0:01:23]} Ke6 {[%emt 0:01:08]} 42. b5 {[%emt 0:02:36]} Rb4+ {[%emt 0:02:03]} 43. Kf3 {[%emt 0:01:02]} Rb3+ {[%emt 0:00:30]} 44. Ke4 1/2-1/2

[Event "Polish Youth G16 Championship 2023"]
[Site "Jastrzebia Gora"]
[Date "2023.03.19"]
[Round "9.2"]
[White "Kawa, Anna"]
[Black "Seemann, Pola"]
[Result "1/2-1/2"]
[ECO "B13"]
[WhiteElo "1743"]
[BlackElo "1714"]
[Annotator "NA RC COMBH"]
[PlyCount "128"]
[EventDate "2023.03.11"]
[EventType "swiss"]
[EventCountry "POL"]
[SourceTitle "playchess.com"]
[Source "ChessBase"]
[SourceQuality "1"]
[TimeControl "40/5400+30:1800+30"]

1. e4 {[%emt 0:00:03]} c6 {[%emt 0:00:04]} 2. d4 {[%emt 0:00:17]} d5 {[%emt 0:00:04]} 3. exd5 {[%emt 0:00:13]} cxd5 {[%emt 0:00:06]} 4. Bd3 {[%emt 0:00:22]} Nc6 {[%emt 0:00:06]} 5. c3 {[%emt 0:00:18]} Qc7 {[%emt 0:00:08]} 6. h3 {[%emt 0:00:30]} Nf6 {[%emt 0:00:08]} 7. Nf3 {[%emt 0:00:41]} g6 {[%emt 0:00:08]} 8. Be3 {[%emt 0:02:08]} Bf5 {[%emt 0:00:29]} 9. O-O {[%emt 0:01:48]} Bxd3 {[%emt 0:02:09]} 10. Qxd3 {[%emt 0:00:19]} Bg7 {[%emt 0:01:16]} 11. Nbd2 {[%emt 0:03:15]} O-O {[%emt 0:02:14]} 12. Rfe1 {[%emt 0:02:39]} Rab8 {[%emt 0:05:57]} 13. a4 {[%emt 0:04:55]} a6 {[%emt 0:05:17]} 14. Ne5 {[%emt 0:08:56]} Nd7 {[%emt 0:11:52]} 15. Nxd7 {[%emt 0:07:39]} Qxd7 {[%emt 0:00:15]} 16. Bf4 {[%emt 0:00:25]} Rbc8 {[%emt 0:03:16]} 17. Nb3 {[%emt 0:02:24]} e6 {[%emt 0:09:26]} 18. Nc5 {[%emt 0:06:18]} Qe7 {[%emt 0:02:39]} 19. b4 {[%emt 0:05:35]} a5 {[%emt 0:09:34]} 20. b5 {[%emt 0:11:15]} b6 {[%emt 0:01:40]} 21. Qg3 {[%emt 0:14:43]} e5 {[%emt 0:17:47]} 22. bxc6 {[%emt 0:03:23]} exf4 {[%emt 0:02:55]} 23. Qxf4 {[%emt 0:01:42]} Qc7 {[%emt 0:00:14]} 24. Qxc7 {[%emt 0:00:37]} Rxc7 {[%emt 0:00:06]} 25. Nd7 {[%emt 0:00:45]} Rd8 {[%emt 0:00:09]} 26. Nxb6 {[%emt 0:00:55]} Rxc6 {[%emt 0:00:08]} 27. Rab1 {[%emt 0:00:41]} Rxc3 {[%emt 0:06:45]} 28. Rb5 {[%emt 0:08:22]} Bxd4 {[%emt 0:01:24]} 29. Nxd5 {[%emt 0:00:12]} Rc5 {[%emt 0:01:56]} 30. Rxc5 {[%emt 0:03:16]} Bxc5 {[%emt 0:00:07]} 31. Rd1 {[%emt 0:00:19]} Kg7 {[%emt 0:03:24]} 32. Kf1 {[%emt 0:00:45]} f5 {[%emt 0:00:51]} 33. f3 {[%emt 0:04:15]} Kf7 {[%emt 0:02:12]} 34. Ke2 {[%emt 0:01:20]} Rd6 {[%emt 0:02:14]} 35. g4 {[%emt 0:01:16]} fxg4 {[%emt 0:03:03]} 36. fxg4 {[%emt 0:00:05]} Ke6 {[%emt 0:00:54]} 37. Nc7+ {[%emt 0:01:42]} Kd7 {[%emt 0:00:14]} 38. Nb5 {[%emt 0:00:23]} Rxd1 {[%emt 0:00:09]} 39. Kxd1 {[%emt 0:00:04]} Ke6 {[%emt 0:01:04]} 40. Ke2 {[%emt 0:00:00]} Ke5 {[%emt 0:00:00]} 41. Nc7 {[%emt 0:04:16]} Bd6 {[%emt 0:02:23]} 42. Nb5 {[%emt 0:01:56]} Be7 {[%emt 0:02:10]} 43. Na7 {[%emt 0:02:09]} Kd5 {[%emt 0:00:55]} 44. Kd3 {[%emt 0:00:51]} Bc5 {[%emt 0:00:16]} 45. Nb5 {[%emt 0:00:03]} Ke5 {[%emt 0:00:12]} 46. Nc7 {[%emt 0:00:57]} Bb6 {[%emt 0:01:27]} 47. Na8 {[%emt 0:06:15]} Ba7 {[%emt 0:00:28]} 48. Nc7 {[%emt 0:00:14]} Kf4 {[%emt 0:00:18]} 49. Ne6+ {[%emt 0:00:46]} Kg3 {[%emt 0:00:08]} 50. g5 {[%emt 0:03:36]} Kxh3 {[%emt 0:02:39]} 51. Nf8 {[%emt 0:00:05]} Bc5 {[%emt 0:00:46]} 52. Nxh7 {[%emt 0:00:56]} Kg4 {[%emt 0:00:09]} 53. Kc4 {[%emt 0:03:03]} Bb4 {[%emt 0:00:07]} 54. Kb5 {[%emt 0:01:48]} Kf5 {[%emt 0:00:11]} 55. Ka6 {[%emt 0:03:26]} Bd2 {[%emt 0:00:09]} 56. Kb5 {[%emt 0:00:04]} Ke6 {[%emt 0:00:07]} 57. Nf8+ {[%emt 0:01:41]} Kf5 {[%emt 0:01:01]} 58. Nh7 {[%emt 0:00:10]} Bb4 {[%emt 0:01:12]} 59. Ka6 {[%emt 0:00:41]} Ke6 {[%emt 0:00:18]} 60. Kb5 {[%emt 0:01:36]} Ke7 {[%emt 0:05:03]} 61. Nf6 {[%emt 0:02:46]} Ke6 {[%emt 0:00:46]} 62. Nh7 {[%emt 0:00:22]} Bc3 {[%emt 0:00:43]} 63. Nf8+ {[%emt 0:00:38]} Kf5 {[%emt 0:01:43]} 64. Nh7 {[%emt 0:00:15]} Bb4 {[%emt 0:05:08]} 1/2-1/2

[Event "Polish Youth G16 Championship 2023"]
[Site "Jastrzebia Gora"]
[Date "2023.03.19"]
[Round "9.3"]
[White "Bar, Klaudia"]
[Black "Siekanska, Maria"]
[Result "0-1"]
[ECO "B93"]
[WhiteElo "1731"]
[BlackElo "1996"]
[Annotator "TA"]
[PlyCount "70"]
[EventDate "2023.03.11"]
[EventType "swiss"]
[EventCountry "POL"]
[SourceTitle "playchess.com"]
[Source "ChessBase"]
[SourceQuality "1"]
[TimeControl "40/5400+30:1800+30"]

{[%evp 14,70,58,32,75,14,37,32,138,135,135,135,175,196,159,103,123,104,150,144,227,111,262,202,285,285,391,200,408,387,525,524,411,0,0,0,0,-22,-15,-59,-42,-89,0,-82,-63,-70,-50,-60,-56,-150,-130,-161,0,-110,-56,-63,-73,-2012,-1984]} 1. e4 {[%emt 0:00:02]} c5 {[%emt 0:00:04]} 2. Nf3 {[%emt 0:00:05]} d6 {[%emt 0:00:04]} 3. d4 {[%emt 0:00:17]} cxd4 {[%emt 0:00:05]} 4. Nxd4 {[%emt 0:00:07]} Nf6 {[%emt 0:00:04]} 5. Nc3 {[%emt 0:00:09]} a6 {[%emt 0:00:03]} 6. f4 {[%emt 0:00:11]} e6 {[%emt 0:01:13]} 7. Qf3 {[%emt 0:00:23]} Qb6 {[%emt 0:00:25]} 8. Nb3 {[%emt 0:00:13]} (8. a3 $5) 8... Nbd7 {[%emt 0:00:45] B82: Sicilian Scheveningen: 6 f4.} 9. Be3 {[%emt 0:06:40]} (9. g4 $16) 9... Qc7 $1 $11 {[%emt 0:00:08]} 10. g4 {[%emt 0:00:22][%cal Bg2g4,Bg4g5][%mdl 32] Strongly threatening g5.} Nb6 {[%emt 0:11:32]} (10... b5 $14) 11. g5 $16 {[%emt 0:06:53]} Nfd7 {[%emt 0:00:08]} 12. O-O-O {[%emt 0:08:50] [#]} Nc4 $146 {[%emt 0:00:52]} ({Predecessor:} 12... Be7 13. Bd3 Nc4 14. Bd4 O-O 15. Qh5 Re8 16. f5 Nde5 17. f6 g6 18. Qe2 Bf8 {1-0 Barthel,A (2185)-Feldmann,H (2110) Ruhrgebiet VL1 9798 1997}) 13. Bxc4 {[%emt 0:00:46]} Qxc4 {[%emt 0:00:09]} 14. Rd4 {[%emt 0:22:42]} (14. Qh3 $142) 14... Qc6 {[%emt 0:05:33]} 15. Rhd1 {[%emt 0:08:33]} b6 {[%emt 0:20:22] Prevents Na5.} (15... b5 $142) 16. Qe2 {[%emt 0:06:40]} b5 {[%emt 0:02:35]} (16... Be7 $16 {was called for.}) 17. Bf2 {[%emt 0:06:54]} (17. Nd5 $1 $18 {has better winning chances. Hoping for Na5.} Bb7 18. Bd2) 17... e5 $2 {[%emt 0:08:27]} (17... Be7 $16) 18. R4d2 {[%emt 0:07:30]} exf4 {[%emt 0:07:47]} (18... Be7 {was worth a try.} 19. Kb1 Qc4) 19. Nd5 $18 {[%emt 0:00:51] Black must now prevent Na5.} Bb7 {[%emt 0:13:58]} 20. Nd4 {[%emt 0:06:30] A dynamic duo of knights.} (20. Nxf4 Ne5 $16) (20. Na5 Qc8 21. Bd4 (21. Nxf4 Be7 $16) 21... h6 $18) (20. Rd3 $142) 20... Qc8 $2 {[%emt 0:00:12]} (20... Qc4) 21. Nf5 {[%emt 0:01:22]} (21. Nxf4 Ne5 $16) 21... Bxd5 {[%emt 0:07:17]} 22. Rxd5 {[%emt 0:01:24] e5 is the strong threat.} (22. exd5+ Ne5 23. Qe4 g6 $11) 22... Ne5 {[%emt 0:02:22]} 23. Nxd6+ $2 {[%emt 0:01:39]} (23. Bc5 $18 Nc6 24. Bxd6) 23... Bxd6 $11 {[%emt 0:00:06]} 24. Rxd6 {[%emt 0:00:05] Threatens to win with R6d5.} O-O $1 {[%emt 0:00:13]} 25. R6d5 {[%emt 0:03:33]} (25. Bd4 $5 {[%cal Rd4e5]} Ng6 26. Qf3 $11) 25... Re8 {[%emt 0:01:50]} 26. Qd2 {[%emt 0:03:49]} Qg4 {[%emt 0:03:32]} 27. Qc3 {[%emt 0:06:21] [#]} (27. Bd4 $15 Ng6 28. Bc5) 27... f3 {[%emt 0:05:00]} 28. Qe3 {[%emt 0:01:04]} (28. Bg3 $1 $11 Ng6 29. Rf5) 28... Nc4 {[%emt 0:00:30]} 29. Qd4 {[%emt 0:00:25]} Qf4+ $1 {[%emt 0:02:01]} (29... Rxe4 $2 30. Rd8+ Re8 31. Rxe8+ Rxe8 32. Qxg4 $18) ({Don't take} 29... Qxe4 30. Qxe4 Rxe4 31. b3 $11) 30. Kb1 {[%emt 0:00:16]} Rac8 $1 $36 {[%emt 0:01:39][%mdl 2048] Black fights for an advantage.} ({Don't play} 30... Qxe4 31. Qxe4 Rxe4 32. b3 $14) ({Much less strong is} 30... Qxh2 31. Be1 $16) 31. Re1 {[%emt 0:00:53]} ({Better is} 31. Bg3 $15 Qxe4 32. Qxe4 Rxe4 33. Rd8+ Re8 34. Rxc8 Rxc8 35. Rd3) 31... Qxh2 $17 {[%emt 0:00:35] Black is much more active.} 32. e5 {[%emt 0:00:25][%cal Oe5e6] [#]} Qh3 {[%emt 0:02:31] Repels e6} (32... Qh5 $1 $19 33. a3 Qg6) 33. Qf4 {[%emt 0:00:31]} (33. e6 $1 $11 fxe6 34. Rd7) 33... Qe6 {[%emt 0:01:09]} (33... h5 $17 {...Qg2 would be deadly.} 34. gxh6 Qxh6 35. Qxh6 gxh6) 34. Qxf3 $15 {[%emt 0:00:32]} Rcd8 {[%emt 0:01:23]} 35. Rc5 {[%emt 0:00:31][%mdl 8192]} (35. Rxd8 $17 Rxd8 36. Rd1) 35... Nd2+ {[%emt 0:00:02] Weighted Error Value: White=0.78/Black=0.57} 0-1

[Event "Polish Youth G16 Championship 2023"]
[Site "Jastrzebia Gora"]
[Date "2023.03.19"]
[Round "9.4"]
[White "Pawicka, Magdalena"]
[Black "Smietanska, Wiktoria"]
[Result "0-1"]
[ECO "B94"]
[WhiteElo "1805"]
[BlackElo "1954"]
[Annotator "TA"]
[PlyCount "89"]
[EventDate "2023.03.11"]
[EventType "swiss"]
[EventCountry "POL"]
[SourceTitle "playchess.com"]
[Source "ChessBase"]
[SourceQuality "1"]
[TimeControl "40/5400+30:1800+30"]

{[%evp 11,89,13,40,29,35,7,5,6,8,13,6,0,0,0,0,0,0,-50,-28,-103,-89,-97,-107,-100,-95,-149,-144,-164,-129,-173,-139,-318,-308,-307,-277,-308,-229,-227,-131,-119,-117,-144,-125,-186,-195,-192,-195,-195,-180,-188,-171,-168,-116,-118,-108,-110,-9,-9,-9,-34,0,0,0,0,0,-379,-362,-298,-205,-29963,-29964,-29973,-29974,-29978,-29979,-29980,-29981,-29978,-29975,-29969]} 1. e4 {[%emt 0:01:40]} c5 {[%emt 0:00:08]} 2. Nf3 {[%emt 0:00:31][%cal Bg1f3,Bf3d4,Bd4f5][%mdl 32]} d6 {[%emt 0:00:08]} 3. d4 {[%emt 0:00:22]} cxd4 {[%emt 0:00:07]} 4. Nxd4 {[%emt 0:00:41]} Nf6 {[%emt 0:00:08]} 5. Nc3 {[%emt 0:00:04]} a6 {[%emt 0:00:06]} 6. Bg5 {[%emt 0:01:12]} Nbd7 {[%emt 0:01:08]} 7. Qe2 {[%emt 0:02:27] B94: Sicilian Najdorf: 6 Bg5 Nbd7.} Qc7 {[%emt 0:03:49]} 8. f4 {[%emt 0:03:29]} e5 {[%emt 0:06:00] 8...e6 is the hot move.} 9. Nf5 {[%emt 0:13:27] The position is equal.} h6 {[%emt 0:06:26]} 10. Bxf6 {[%emt 0:21:13]} Nxf6 {[%emt 0:00:37]} 11. Ne3 {[%emt 0:02:42] Prevents d5 has lost popularity (11.0-0-0).} exf4 {[%emt 0:12:16]} 12. Ned5 {[%emt 0:02:38]} Nxd5 {[%emt 0:00:22]} 13. Nxd5 {[%emt 0:01:40]} Qc5 {[%emt 0:13:01] [#]} 14. Rd1 $146 {[%emt 0:16:28]} (14. b4 $11 Qc6 15. Qc4 Qxc4 16. Bxc4) ({Predecessor:} 14. b4 Qc6 15. Qf2 Be6 16. b5 Qc8 17. Bd3 Bxd5 18. exd5 Qc3+ 19. Ke2 Be7 20. Qxf4 {0-1 Shubin,D (2120)-Rabatin,J (2349) Pardubice Czech op-A 33rd 2022 (1)}) 14... Be7 {[%emt 0:16:29]} 15. Rd3 {[%emt 0:12:02]} (15. Qf2 $11 Bd8 16. Qxc5 dxc5 17. Nxf4) 15... Bh4+ {[%emt 0:02:39]} 16. g3 {[%emt 0:02:24]} fxg3 {[%emt 0:00:58]} 17. hxg3 {[%emt 0:00:50]} Bd8 {[%emt 0:00:31]} 18. b4 {[%emt 0:07:08]} (18. Rh5 $142) 18... Qc4 $17 {[%emt 0:05:15]} 19. e5 {[%emt 0:04:32]} O-O $1 {[%emt 0:01:20]} (19... Qxa2 20. exd6+ Kf8 21. Bg2 $18) (19... Bg4 20. Qe3 $15) 20. exd6 {[%emt 0:00:15]} Bg4 {[%emt 0:07:38]} ({Stronger than} 20... Qxa2 21. Bg2 $15 (21. Ne7+ Bxe7 22. dxe7 Re8 $17)) 21. Qd2 {[%emt 0:01:40]} (21. Qe3 $17) 21... Qe4+ $19 {[%emt 0:00:42]} ({Weaker is} 21... Qxa2 22. Kf2 $15) 22. Ne3 {[%emt 0:01:00]} Qxh1 {[%emt 0:00:14]} 23. Nxg4 {[%emt 0:03:02]} Bg5 {[%emt 0:02:43]} 24. Qg2 {[%emt 0:00:18]} Rfe8+ {[%emt 0:00:43]} (24... Rae8+ $19 25. Kf2 Qh5) 25. Kf2 $17 {[%emt 0:00:14]} Qxg2+ {[%emt 0:00:56]} 26. Bxg2 {[%emt 0:00:02]} h5 {[%emt 0:01:32]} 27. Ne3 {[%emt 0:01:01]} (27. Bxb7 $17 {keeps fighting.} Rab8 28. Bc6) 27... Bxe3+ {[%emt 0:00:51]} 28. Rxe3 {[%emt 0:00:03]} Rxe3 {[%emt 0:00:34]} 29. Kxe3 $19 {[%emt 0:00:02][%cal Oc2c4][%mdl 4096] Endgame KR-KB} Rd8 {[%emt 0:00:08]} 30. Bxb7 {[%emt 0:00:28] c4 would be deadly.} Rxd6 {[%emt 0:00:05]} 31. Bf3 {[%emt 0:01:43]} g6 {[%emt 0:01:40]} ({Black should try} 31... Rg6 $1 $19 {[%cal Rg6g3]} 32. c4 Kf8) 32. c4 {[%emt 0:00:13]} Kf8 {[%emt 0:00:24]} 33. c5 {[%emt 0:00:28] [#]} Rd8 {[%emt 0:02:34]} (33... Rf6 $1 $17 {Threatens to win with ...Ke7.} 34. a4 Ke7) 34. Bb7 $11 {[%emt 0:00:51][%cal Oc5c6] c6! is the strong threat.} Ke7 {[%emt 0:06:25] White must now prevent ...Rb8.} 35. Bxa6 {[%emt 0:00:14]} Ra8 {[%emt 0:00:19]} 36. b5 {[%emt 0:00:28][%cal Ob5b6] Hoping for b6!} Kd7 {[%emt 0:02:06]} 37. Kd4 {[%emt 0:00:44] And now Kd5 would win.} g5 {[%emt 0:03:06][%cal Bg6g5,Bg5h4,Bh4h3,Bh3h2][%mdl 32] aiming for ...h4.} 38. Kd5 $2 {[%emt 0:00:42][%mdl 8192]} (38. Bb7 $1 $11 {and White has nothing to worry.} Ra4+ 39. Kd5) 38... h4 $19 {[%emt 0:01:09]} 39. gxh4 {[%emt 0:00:15]} gxh4 {[%emt 0:00:26]} 40. c6+ $2 {[%emt 0:00:00]} (40. Bb7 $19 Ra7 41. Ke4 (41. Bc6+ $2 Kc8 $19)) 40... Kc7 {[%emt 0:00:00] Black mates.} 41. Kc5 {[%emt 0:02:40]} Rb8 {[%emt 0:05:44]} 42. a4 {[%emt 0:01:50] [#]} h3 $1 {[%emt 0:00:22]} 43. a5 {[%emt 0:01:08] [#]} Rxb5+ $3 {[%emt 0:01:04][%mdl 576] Promotion} 44. Bxb5 {[%emt 0:00:26]} h2 {[%emt 0:00:03]} 45. Kd4 {A cool game by Smietanska.   Weighted Error Value: White=0.43/Black=0.23 (precise)} 0-1